[Event "FIN-ch Women 2018"]
[Site "Helsinki"]
[Date "2018.06.16"]
[Round "6"]
[White "Walta, Paivi"]
[Black "Al Najar, Huda"]
[Result "1-0"]
[ECO "B22"]
[WhiteElo "1634"]
[BlackElo "1719"]
[Annotator "NA"]
[PlyCount "79"]
[EventDate "2018.06.13"]
[EventType "tourn"]
[EventCountry "FIN"]
[SourceTitle "playchess.com"]
[Source "ChessBase"]
[SourceQuality "1"]
[TimeControl "40/5400+30:1800+30"]

1. e4 {[%emt 0:00:00]} c5 {[%emt 0:00:19]} 2. c3 {[%emt 0:00:00]} d5 {[%emt 0:00:19]} 3. exd5 {[%emt 0:00:07]} Qxd5 {[%emt 0:00:08]} 4. d4 {[%emt 0:00:13]} Nc6 {[%emt 0:02:03]} 5. Nf3 {[%emt 0:00:25]} cxd4 {[%emt 0:04:55]} 6. cxd4 {[%emt 0:00:19]} Bg4 {[%emt 0:01:59]} 7. Be2 {[%emt 0:00:24]} e6 {[%emt 0:00:39]} 8. Nc3 {[%emt 0:00:54]} Bb4 {[%emt 0:00:06]} 9. O-O {[%emt 0:00:30]} Qa5 {[%emt 0:02:34]} 10. Ne4 {[%emt 0:02:00]} O-O-O {[%emt 0:05:46]} 11. Be3 {[%emt 0:00:42]} Nf6 {[%emt 0:02:46]} 12. h3 {[%emt 0:03:21]} Bxh3 {[%emt 0:08:41]} 13. Neg5 {[%emt 0:01:14]} Bxg2 {[%emt 0:00:33]} 14. Kxg2 {[%emt 0:00:06]} Rd7 {[%emt 0:08:04]} 15. a3 {[%emt 0:00:30]} Bd6 {[%emt 0:02:09]} 16. b4 {[%emt 0:00:52]} Qd8 {[%emt 0:09:09]} 17. Rc1 {[%emt 0:01:16]} Kb8 {[%emt 0:06:55]} 18. Bb5 {[%emt 0:01:25]} h6 {[%emt 0:04:40]} 19. Bxc6 {[%emt 0:10:38]} bxc6 {[%emt 0:01:49]} 20. Nh3 {[%emt 0:00:41]} g5 {[%emt 0:02:48]} 21. Nd2 {[%emt 0:00:08]} g4 {[%emt 0:01:47]} 22. Nf4 {[%emt 0:00:23]} Nd5 {[%emt 0:01:05]} 23. Nxd5 {[%emt 0:00:53]} cxd5 {[%emt 0:00:48]} 24. Nb3 {[%emt 0:00:14]} Ka8 {[%emt 0:11:21]} 25. Qd2 {[%emt 0:06:44]} Qf6 {[%emt 0:01:37]} 26. Qe2 {[%emt 0:02:39]} Qf5 {[%emt 0:02:11]} 27. Nd2 {[%emt 0:01:37]} h5 {[%emt 0:05:34]} 28. Rh1 {[%emt 0:00:53]} h4 {[%emt 0:02:51]} 29. Nf1 {[%emt 0:06:16]} Qe4+ {[%emt 0:03:45]} 30. Kg1 {[%emt 0:00:12]} f5 {[%emt 0:00:21]} 31. Qc2 {[%emt 0:00:48]} Qf3 {[%emt 0:02:35]} 32. Nd2 {[%emt 0:00:32]} Qe2 {[%emt 0:00:37]} 33. Qc6+ {[%emt 0:00:31]} Rb7 {[%emt 0:01:10]} 34. Qxd6 {[%emt 0:00:13]} g3 {[%emt 0:00:07]} 35. Qf4 {[%emt 0:01:57]} gxf2+ {[%emt 0:00:10]} 36. Qxf2 {[%emt 0:00:31]} Rg7+ {[%emt 0:02:37]} 37. Kh2 {[%emt 0:01:01]} Rhg8 {[%emt 0:01:26]} 38. Qxe2 {[%emt 0:00:11]} Rg2+ {[%emt 0:00:02]} 39. Qxg2 {[%emt 0:00:11]} Rxg2+ {[%emt 0:00:07]} 40. Kxg2 {[%emt 0:00:00]} 1-0

[Event "FIN-ch Women 2018"]
[Site "Helsinki"]
[Date "2018.06.16"]
[Round "6"]
[White "Pelander, Pauliina"]
[Black "Ristoja, Aulikki"]
[Result "1-0"]
[ECO "A00"]
[WhiteElo "1610"]
[BlackElo "1565"]
[Annotator "NA"]
[PlyCount "99"]
[EventDate "2018.06.13"]
[EventType "tourn"]
[EventCountry "FIN"]
[SourceTitle "playchess.com"]
[Source "ChessBase"]
[SourceQuality "1"]
[TimeControl "40/5400+30:1800+30"]

1. b4 {[%emt 0:07:00]} e6 {[%emt 0:00:35]} 2. Bb2 {[%emt 0:00:06]} Nf6 {[%emt 0:00:11]} 3. a3 {[%emt 0:00:11]} d5 {[%emt 0:00:25]} 4. e3 {[%emt 0:00:11]} c5 {[%emt 0:00:39]} 5. g4 {[%emt 0:00:58]} cxb4 {[%emt 0:00:34]} 6. axb4 {[%emt 0:00:40]} h6 {[%emt 0:11:04]} 7. b5 {[%emt 0:01:18]} b6 {[%emt 0:01:41]} 8. h4 {[%emt 0:02:53]} Bb7 {[%emt 0:01:55]} 9. Qf3 {[%emt 0:01:07]} Nbd7 {[%emt 0:01:18]} 10. Nh3 {[%emt 0:01:57]} Qc7 {[%emt 0:03:25]} 11. Na3 {[%emt 0:05:25]} d4 {[%emt 0:01:32]} 12. Qe2 {[%emt 0:00:52]} Bxh1 {[%emt 0:00:35]} 13. f3 {[%emt 0:00:05]} Qg3+ {[%emt 0:01:30]} 14. Qf2 {[%emt 0:00:05]} Qxf3 {[%emt 0:01:52]} 15. Qg1 {[%emt 0:01:49]} Nxg4 {[%emt 0:04:04]} 16. Be2 {[%emt 0:00:27]} Qxh3 {[%emt 0:00:43]} 17. Bxg4 {[%emt 0:00:13]} Qxh4+ {[%emt 0:00:28]} 18. Ke2 {[%emt 0:00:14]} Bd5 {[%emt 0:02:46]} 19. Bxd4 {[%emt 0:02:37]} Nf6 {[%emt 0:00:44]} 20. Bxf6 {[%emt 0:03:55]} Qxf6 {[%emt 0:00:27]} 21. c4 {[%emt 0:01:03]} Bb7 {[%emt 0:01:20]} 22. Nc2 {[%emt 0:03:48]} g6 {[%emt 0:01:40]} 23. Nd4 {[%emt 0:02:26]} Bg7 {[%emt 0:00:19]} 24. Rf1 {[%emt 0:03:26]} Qe7 {[%emt 0:00:43]} 25. Bxe6 {[%emt 0:04:43]} Bxd4 {[%emt 0:00:40]} 26. Bxf7+ {[%emt 0:00:26]} Qxf7 {[%emt 0:01:04]} 27. Rxf7 {[%emt 0:00:20]} Kxf7 {[%emt 0:00:13]} 28. exd4 {[%emt 0:00:21]} Rae8+ {[%emt 0:00:29]} 29. Kd3 {[%emt 0:00:53]} Kg7 {[%emt 0:00:53]} 30. d5 {[%emt 0:00:19]} Rhf8 {[%emt 0:00:48]} 31. Qa1+ {[%emt 0:00:38]} Kg8 {[%emt 0:00:54]} 32. Qxa7 {[%emt 0:00:11]} Bxd5 {[%emt 0:00:31]} 33. cxd5 {[%emt 0:00:19]} Rf6 {[%emt 0:00:57]} 34. Qd7 {[%emt 0:06:47]} Ref8 {[%emt 0:00:01]} 35. d6 {[%emt 0:00:48]} h5 36. Qc7 {[%emt 0:01:24]} h4 {[%emt 0:00:11]} 37. d7 {[%emt 0:03:32]} R8f7 {[%emt 0:00:15]} 38. d8=Q+ {[%emt 0:00:49]} Kg7 {[%emt 0:00:21]} 39. Qxf6+ {[%emt 0:02:21]} Kxf6 {[%emt 0:00:04]} 40. Qxb6+ {[%emt 0:00:00]} Kg5 {[%emt 0:01:59]} 41. Qg1+ {[%emt 0:03:43]} Kh5 {[%emt 0:05:17]} 42. b6 {[%emt 0:00:46]} g5 {[%emt 0:01:21]} 43. Qg2 {[%emt 0:01:40]} Rf4 {[%emt 0:03:48]} 44. b7 {[%emt 0:01:11]} Rb4 {[%emt 0:00:35]} 45. Qf3+ {[%emt 0:00:55]} Kg6 {[%emt 0:02:28]} 46. Kc3 {[%emt 0:00:28]} Rxb7 {[%emt 0:02:09]} 47. Qxb7 {[%emt 0:00:11]} g4 {[%emt 0:00:50]} 48. Qe4+ {[%emt 0:00:33]} Kg5 {[%emt 0:00:25]} 49. Qe5+ {[%emt 0:00:07]} Kg6 {[%emt 0:01:42]} 50. Qf4 {[%emt 0:00:11]} 1-0

[Event "FIN-ch Women 2018"]
[Site "Helsinki"]
[Date "2018.06.16"]
[Round "6"]
[White "Al Argha, Fatima"]
[Black "Turunen, Tiina"]
[Result "0-1"]
[ECO "D00"]
[WhiteElo "1436"]
[BlackElo "1665"]
[Annotator "NA"]
[PlyCount "88"]
[EventDate "2018.06.13"]
[EventType "tourn"]
[EventCountry "FIN"]
[SourceTitle "playchess.com"]
[Source "ChessBase"]
[SourceQuality "1"]
[TimeControl "40/5400+30:1800+30"]

1. d4 {[%emt 0:00:00]} d5 {[%emt 0:00:12]} 2. Bf4 {[%emt 0:00:00]} Bf5 {[%emt 0:00:43]} 3. e3 {[%emt 0:00:43]} h6 {[%emt 0:00:35]} 4. Nf3 {[%emt 0:01:53]} e6 {[%emt 0:00:32]} 5. Be2 {[%emt 0:05:09]} Nf6 {[%emt 0:01:05]} 6. O-O {[%emt 0:00:32]} Nbd7 {[%emt 0:01:14]} 7. c4 {[%emt 0:02:39]} c6 {[%emt 0:01:33]} 8. Nc3 {[%emt 0:02:26]} Be7 {[%emt 0:04:03]} 9. Rc1 {[%emt 0:01:00]} O-O {[%emt 0:01:04]} 10. a3 {[%emt 0:02:03]} Rc8 {[%emt 0:05:17]} 11. b4 {[%emt 0:09:22]} a5 {[%emt 0:01:17]} 12. Qb3 {[%emt 0:06:19]} axb4 {[%emt 0:03:45]} 13. axb4 {[%emt 0:00:10]} dxc4 {[%emt 0:01:58]} 14. Bxc4 {[%emt 0:03:44]} Nb6 {[%emt 0:00:47]} 15. Be2 {[%emt 0:07:00]} Nbd5 {[%emt 0:00:40]} 16. Nxd5 {[%emt 0:02:53]} Nxd5 {[%emt 0:00:12]} 17. b5 {[%emt 0:05:31]} Nxf4 {[%emt 0:00:20]} 18. exf4 {[%emt 0:00:10]} Qd6 {[%emt 0:01:30]} 19. Ne5 {[%emt 0:02:09]} Be4 {[%emt 0:02:45]} 20. bxc6 {[%emt 0:02:51]} bxc6 {[%emt 0:00:41]} 21. Rfd1 {[%emt 0:01:03]} Bd5 {[%emt 0:00:45]} 22. Qg3 {[%emt 0:02:21]} Rb8 {[%emt 0:13:01]} 23. Rb1 {[%emt 0:15:16]} Rb4 {[%emt 0:01:34]} 24. Rxb4 {[%emt 0:03:11]} Qxb4 {[%emt 0:00:15]} 25. h3 {[%emt 0:01:21]} Qb2 {[%emt 0:06:05]} 26. Bd3 {[%emt 0:01:24]} Ra8 {[%emt 0:06:18]} 27. Bc4 {[%emt 0:07:23]} Ra1 {[%emt 0:00:30]} 28. Qb3 {[%emt 0:01:38]} Qxd4 {[%emt 0:11:00]} 29. Rxa1 {[%emt 0:00:08]} Qxa1+ {[%emt 0:00:39]} 30. Kh2 {[%emt 0:00:15]} Qa7 {[%emt 0:02:40]} 31. Bxd5 {[%emt 0:01:12]} cxd5 {[%emt 0:00:51]} 32. Nc6 {[%emt 0:01:11]} Qc7 {[%emt 0:05:59]} 33. Nxe7+ {[%emt 0:00:15]} Qxe7 {[%emt 0:00:22]} 34. Qd3 {[%emt 0:00:55]} Qc7 {[%emt 0:01:44]} 35. Qd4 {[%emt 0:00:45]} g5 {[%emt 0:01:17]} 36. Qe5 {[%emt 0:03:15]} Qxe5 {[%emt 0:07:37]} 37. fxe5 {[%emt 0:00:08]} Kg7 {[%emt 0:00:41]} 38. g4 {[%emt 0:00:40]} f6 {[%emt 0:00:16]} 39. exf6+ {[%emt 0:00:16]} Kxf6 {[%emt 0:00:08]} 40. Kg3 {[%emt 0:00:00]} Ke5 {[%emt 0:00:18]} 41. Kf3 {[%emt 0:01:03]} Kd4 {[%emt 0:00:23]} 42. Kg3 {[%emt 0:01:50]} e5 {[%emt 0:00:33]} 43. h4 {[%emt 0:00:28]} Ke4 {[%emt 0:00:32]} 44. hxg5 {[%emt 0:01:15]} hxg5 {[%emt 0:00:14]} 0-1

[Event "FIN-ch Women 2018"]
[Site "Helsinki"]
[Date "2018.06.16"]
[Round "6"]
[White "Al-Hamoud, Lyal"]
[Black "Nazarova, Anastasia"]
[Result "0-1"]
[ECO "B24"]
[WhiteElo "1382"]
[BlackElo "2137"]
[Annotator "NA"]
[PlyCount "66"]
[EventDate "2018.06.13"]
[EventType "tourn"]
[EventCountry "FIN"]
[SourceTitle "playchess.com"]
[Source "ChessBase"]
[SourceQuality "1"]
[TimeControl "40/5400+30:1800+30"]

1. e4 {[%emt 0:00:00]} c5 {[%emt 0:00:03]} 2. Nc3 {[%emt 0:00:25]} Nc6 {[%emt 0:00:06]} 3. Nf3 {[%emt 0:00:11]} g6 {[%emt 0:00:07]} 4. b3 {[%emt 0:00:26]} Bg7 {[%emt 0:00:08]} 5. Bb2 {[%emt 0:00:11]} d6 {[%emt 0:00:34]} 6. h3 {[%emt 0:00:22]} e6 {[%emt 0:00:51]} 7. d3 {[%emt 0:00:37]} Nge7 {[%emt 0:00:42]} 8. Be2 {[%emt 0:00:44]} O-O {[%emt 0:00:23]} 9. O-O {[%emt 0:00:09]} b5 {[%emt 0:00:32]} 10. Qc1 {[%emt 0:02:40]} a6 {[%emt 0:00:57]} 11. a3 {[%emt 0:02:46]} d5 {[%emt 0:00:39]} 12. exd5 {[%emt 0:02:41]} exd5 {[%emt 0:00:05]} 13. a4 {[%emt 0:01:29]} b4 {[%emt 0:00:31]} 14. Nd1 {[%emt 0:00:20]} d4 {[%emt 0:00:17]} 15. Rb1 {[%emt 0:02:29]} Nd5 {[%emt 0:00:24]} 16. Ba1 {[%emt 0:06:29]} Ra7 {[%emt 0:00:32]} 17. Nd2 {[%emt 0:02:48]} Nf4 {[%emt 0:01:03]} 18. Bf3 {[%emt 0:01:07]} Ne5 {[%emt 0:00:24]} 19. Re1 {[%emt 0:05:25]} Nexd3 {[%emt 0:02:06]} 20. cxd3 {[%emt 0:03:00]} Nxd3 {[%emt 0:00:07]} 21. Qc4 {[%emt 0:01:36]} Nxe1 {[%emt 0:00:04]} 22. Qxc5 {[%emt 0:02:00]} Rc7 {[%emt 0:00:43]} 23. Qa5 {[%emt 0:03:44]} Nxf3+ {[%emt 0:01:13]} 24. Nxf3 {[%emt 0:00:18]} Bf5 {[%emt 0:00:12]} 25. Rb2 {[%emt 0:00:57]} Rc1 {[%emt 0:00:16]} 26. Qxd8 {[%emt 0:01:31]} Rxd1+ {[%emt 0:00:13]} 27. Kh2 {[%emt 0:00:17]} Rxd8 {[%emt 0:00:04]} 28. Ra2 {[%emt 0:00:32]} Be6 {[%emt 0:00:10]} 29. Bb2 {[%emt 0:03:34]} Bxb3 {[%emt 0:00:06]} 30. Ra1 {[%emt 0:00:11]} Rxa1 {[%emt 0:00:06]} 31. Bxa1 {[%emt 0:00:04]} d3 {[%emt 0:00:10]} 32. Bxg7 {[%emt 0:00:16]} Kxg7 {[%emt 0:00:03]} 33. Nd2 {[%emt 0:00:16]} Bxa4 {[%emt 0:00:05]} 0-1

[Event "FIN-ch Women 2018"]
[Site "Helsinki"]
[Date "2018.06.17"]
[Round "7"]
[White "Nazarova, Anastasia"]
[Black "Al Argha, Fatima"]
[Result "1-0"]
[ECO "C62"]
[WhiteElo "2137"]
[BlackElo "1436"]
[Annotator "NA"]
[PlyCount "105"]
[EventDate "2018.06.13"]
[EventType "tourn"]
[EventCountry "FIN"]
[SourceTitle "playchess.com"]
[Source "ChessBase"]
[SourceQuality "1"]
[TimeControl "40/5400+30:1800+30"]

1. e4 {[%emt 0:00:00]} e5 {[%emt 0:00:14]} 2. Nf3 {[%emt 0:00:00]} Nc6 {[%emt 0:00:07]} 3. Bb5 {[%emt 0:00:00]} d6 {[%emt 0:00:34]} 4. d4 {[%emt 0:00:04]} exd4 {[%emt 0:00:07]} 5. Nxd4 {[%emt 0:00:06]} Bd7 {[%emt 0:00:15]} 6. Nc3 {[%emt 0:01:44]} g6 {[%emt 0:01:26]} 7. O-O {[%emt 0:03:35]} Bg7 {[%emt 0:00:13]} 8. Be3 {[%emt 0:01:11]} Nf6 {[%emt 0:01:47]} 9. f3 {[%emt 0:00:40] C62: Ruy Lopez: Steinitz Defence} (9. h3 O-O 10. Re1 Re8 11. Nxc6 Bxc6 12. Bxc6 bxc6 13. Bg5 h6 14. Bd2 Nd7 15. b3 Nc5 16. Qf3 Qf6 17. Qxf6 Bxf6 {0-1 (49) Leko,P (2723)-Aronian,L (2797) Beijing 2014}) 9... O-O {[%emt 0:00:29]} 10. Qd2 {[%emt 0:01:13]} Re8 {[%emt 0:01:07] LiveBook: 3 Games} 11. Rfe1 {[%emt 0:00:32]} Ne5 {[%emt 0:03:56]} 12. Bf1 {[%emt 0:01:09]} a6 {[%emt 0:02:37]} 13. a4 {[%emt 0:00:48]} Be6 $146 {[%emt 0:02:05]} ({Predecessor:} 13... h5 14. Bg5 Qc8 15. Rad1 Nh7 16. Bh6 Bh8 17. Kh1 Qd8 {0-1 (38) Heyme,S (2090)-Juergens,V (2300) Germany 1999}) 14. Nxe6 {[%emt 0:00:47]} fxe6 {[%emt 0:00:39]} 15. Rad1 {[%emt 0:00:12]} Qd7 {[%emt 0:01:41]} 16. h3 {[%emt 0:05:34]} Rad8 {[%emt 0:07:40]} 17. Qf2 {[%emt 0:04:35]} Qf7 {[%emt 0:02:15]} 18. f4 {[%emt 0:07:56]} Nc6 {[%emt 0:01:53]} 19. g4 {[%emt 0:05:40]} Kh8 {[%emt 0:05:46]} 20. Bg2 {[%emt 0:00:47]} Ng8 {[%emt 0:03:02]} 21. Rf1 {[%emt 0:01:53]} Nge7 {[%emt 0:01:12]} 22. Kh1 {[%emt 0:04:34]} Rf8 {[%emt 0:03:53]} 23. Qg3 {[%emt 0:01:19]} Qe8 {[%emt 0:00:44]} 24. Rf2 {[%emt 0:09:09]} Rf7 {[%emt 0:07:38]} 25. Rfd2 {[%emt 0:03:33]} Rf8 {[%emt 0:03:11]} 26. Bf3 $15 {[%emt 0:12:37]} ({Günstiger ist} 26. Rf1 $14) 26... Qf7 {[%emt 0:10:07]} 27. Kg2 {[%emt 0:01:11]} Rde8 {[%emt 0:11:03]} 28. Rf2 {[%emt 0:00:51]} Rd8 {[%emt 0:00:46]} 29. Be2 {[%emt 0:10:39]} d5 {[%emt 0:02:47]} 30. Bc1 {[%emt 0:02:14]} d4 {[%emt 0:09:38]} 31. Nb1 {[%emt 0:00:22]} e5 {[%emt 0:01:26]} 32. f5 {[%emt 0:05:11]} gxf5 {[%emt 0:00:20]} 33. gxf5 {[%emt 0:00:59]} Rg8 {[%emt 0:00:30]} 34. Kh1 {[%emt 0:00:55]} Bf6 {[%emt 0:00:49]} 35. Qh2 {[%emt 0:01:40]} Nc8 {[%emt 0:04:18]} 36. Nd2 {[%emt 0:02:17]} Nd6 {[%emt 0:00:40]} 37. Bd3 {[%emt 0:02:07]} Rg7 {[%emt 0:03:12]} 38. Nf3 {[%emt 0:01:41]} Qh5 {[%emt 0:01:06]} 39. Rg1 {[%emt 0:01:48]} Rdg8 {[%emt 0:00:25]} 40. Rxg7 {[%emt 0:00:00]} Rxg7 {[%emt 0:00:10]} 41. Rf1 {[%emt 0:07:54]} Nd8 {[%emt 0:05:25]} 42. Bd2 {[%emt 0:10:41]} c5 {[%emt 0:01:05]} 43. b3 {[%emt 0:00:03]} b5 {[%emt 0:02:12]} 44. axb5 {[%emt 0:00:04]} axb5 {[%emt 0:00:08]} 45. c4 {[%emt 0:06:47]} bxc4 {[%emt 0:00:45]} 46. bxc4 {[%emt 0:00:04]} Ra7 {[%emt 0:02:04]} 47. Nxe5 {[%emt 0:00:17]} Bxe5 {[%emt 0:00:51]} 48. Qxe5+ {[%emt 0:00:14]} Kg8 {[%emt 0:00:58]} 49. Rg1+ {[%emt 0:00:11]} Kf8 {[%emt 0:00:37]} 50. Qxd6+ {[%emt 0:00:16]} Kf7 {[%emt 0:04:34]} 51. Qd5+ {[%emt 0:02:52]} Ke8 {[%emt 0:01:39]} 52. Rg8+ {[%emt 0:00:13]} Ke7 {[%emt 0:00:14]} 53. Qxd8+ {[%emt 0:00:12]} 1-0

[Event "FIN-ch Women 2018"]
[Site "Helsinki"]
[Date "2018.06.17"]
[Round "7"]
[White "Dannenberg, Alia"]
[Black "Al-Hamoud, Lyal"]
[Result "1-0"]
[ECO "C26"]
[WhiteElo "1934"]
[BlackElo "1382"]
[Annotator "NA"]
[PlyCount "105"]
[EventDate "2018.06.13"]
[EventType "tourn"]
[EventCountry "FIN"]
[SourceTitle "playchess.com"]
[Source "ChessBase"]
[SourceQuality "1"]
[TimeControl "40/5400+30:1800+30"]

1. e4 {[%emt 0:00:00]} e5 {[%emt 0:00:08]} 2. Nc3 {[%emt 0:00:00]} Nf6 {[%emt 0:00:06]} 3. f4 {[%emt 0:00:00]} d6 {[%emt 0:01:46]} 4. Nf3 {[%emt 0:00:02]} Nc6 {[%emt 0:00:18]} 5. Bb5 {[%emt 0:00:39]} a6 {[%emt 0:00:40] C30: King's Gambit Declined} (5... Bd7 6. d3 Nd4 7. Bxd7+ Qxd7 8. O-O Nxf3+ 9. Qxf3 Be7 10. fxe5 dxe5 11. Qg3 Qe6 12. Nd5 O-O 13. Nxe7+ Qxe7 14. Bg5 {½-½ (51) Sveshnikov,E (2464)-Beliavsky,A (2540) Maribor 2018}) 6. Bxc6+ {[%emt 0:00:58]} bxc6 {[%emt 0:00:25]} 7. fxe5 {[%emt 0:00:16]} dxe5 {[%emt 0:01:53]} 8. d3 {[%emt 0:01:33]} (8. Nxe5 $16 Bc5 9. Qf3 (9. Nxc6 Qd6 $14)) 8... h6 $146 {[%emt 0:01:01]} ({Predecessor:} 8... Nd7 9. O-O Be7 10. Qe1 O-O 11. Qg3 f6 12. Be3 Qe8 13. Nh4 {1-0 (37) Kennaugh,C (2294)-Crean,M Liverpool 2007}) 9. h3 {[%emt 0:01:33]} (9. Nxe5 $16 Qd4 10. Nf3) 9... Bd6 {[%emt 0:01:53]} 10. Be3 {[%emt 0:01:26]} O-O {[%emt 0:02:02]} 11. O-O {[%emt 0:00:33]} Bb7 {[%emt 0:03:28]} 12. Ne2 {[%emt 0:02:17]} Re8 {[%emt 0:01:47]} 13. Ng3 {[%emt 0:00:51]} Bc8 {[%emt 0:01:54]} 14. Rf2 {[%emt 0:03:07]} Bd7 {[%emt 0:02:03]} 15. Nh2 {[%emt 0:01:14]} Qc8 $2 {[%emt 0:03:00] [#]} (15... Nh7 $16 {is a better chance.}) 16. Nf5 $2 {[%emt 0:04:47]} (16. Rxf6 $1 $18 {[%mdl 512] is the precise move to win.} gxf6 17. Qf3) 16... Bxf5 {[%emt 0:01:38]} 17. Rxf5 {[%emt 0:00:03]} Qe6 {[%emt 0:04:10]} 18. Qf3 {[%emt 0:02:26]} Nd7 {[%emt 0:06:51]} 19. Qg3 $16 {[%emt 0:01:30]} Qg6 {[%emt 0:03:49]} 20. Qxg6 {[%emt 0:03:23]} fxg6 {[%emt 0:00:31]} 21. Rf3 {[%emt 0:00:02]} Nf6 {[%emt 0:02:09]} 22. Raf1 {[%emt 0:01:44]} Rf8 {[%emt 0:04:42]} 23. Bxh6 {[%emt 0:04:13]} gxh6 {[%emt 0:01:00]} 24. Rxf6 {[%emt 0:00:12]} Rxf6 {[%emt 0:00:22]} 25. Rxf6 {[%emt 0:00:03]} Kg7 {[%emt 0:00:49]} 26. Rf3 {[%emt 0:00:17]} Rb8 {[%emt 0:02:00]} 27. b3 {[%emt 0:00:18]} Bb4 {[%emt 0:00:23]} 28. a4 {[%emt 0:01:35]} h5 {[%emt 0:02:23]} 29. Kf2 {[%emt 0:02:01]} Rf8 {[%emt 0:00:28]} 30. Nf1 {[%emt 0:03:22]} Bc3 {[%emt 0:01:28]} 31. Ne3 {[%emt 0:01:40]} Rxf3+ {[%emt 0:01:55]} 32. Kxf3 {[%emt 0:00:02]} a5 {[%emt 0:01:53]} 33. Nd1 {[%emt 0:00:41]} Bd4 {[%emt 0:03:17]} 34. c3 {[%emt 0:00:17]} Bb6 {[%emt 0:00:42]} 35. b4 {[%emt 0:02:32]} Kf6 {[%emt 0:01:00]} 36. Ne3 {[%emt 0:02:48]} c5 {[%emt 0:03:42]} 37. Nd5+ {[%emt 0:04:11]} Ke6 {[%emt 0:02:17]} 38. bxc5 {[%emt 0:00:48]} Bxc5 {[%emt 0:00:42]} 39. Nxc7+ {[%emt 0:00:13]} Kd7 {[%emt 0:01:08]} 40. Nb5 {[%emt 0:00:00]} Bb6 {[%emt 0:03:42]} 41. d4 {[%emt 0:02:12]} Ke6 {[%emt 0:00:42]} 42. g4 {[%emt 0:01:02]} exd4 {[%emt 0:03:25]} 43. cxd4 {[%emt 0:00:13]} Bd8 {[%emt 0:01:14]} 44. gxh5 {[%emt 0:00:32]} gxh5 {[%emt 0:00:15]} 45. Kf4 {[%emt 0:00:15]} Kd7 {[%emt 0:03:18]} 46. d5 {[%emt 0:00:30]} Be7 {[%emt 0:02:38]} 47. e5 {[%emt 0:00:17]} h4 {[%emt 0:02:01]} 48. e6+ {[%emt 0:00:48]} Kd8 {[%emt 0:00:53]} 49. d6 {[%emt 0:01:04]} Bf6 {[%emt 0:01:02]} 50. Kf5 {[%emt 0:00:45]} Bb2 {[%emt 0:00:28]} 51. Na7 {[%emt 0:01:06]} Ke8 {[%emt 0:01:06]} 52. Nc6 {[%emt 0:00:45]} Bc3 {[%emt 0:00:26]} 53. Kg6 {[%emt 0:01:02]} 1-0

[Event "FIN-ch Women 2018"]
[Site "Helsinki"]
[Date "2018.06.17"]
[Round "7"]
[White "Al Najar, Huda"]
[Black "Pelander, Pauliina"]
[Result "1-0"]
[ECO "B00"]
[WhiteElo "1719"]
[BlackElo "1610"]
[Annotator "NA"]
[PlyCount "53"]
[EventDate "2018.06.13"]
[EventType "tourn"]
[EventCountry "FIN"]
[SourceTitle "playchess.com"]
[Source "ChessBase"]
[SourceQuality "1"]
[TimeControl "40/5400+30:1800+30"]

1. e4 {[%emt 0:00:00]} b6 {[%emt 0:05:17]} 2. Nf3 {[%emt 0:00:05]} Bb7 {[%emt 0:00:13]} 3. d3 {[%emt 0:00:35]} e6 {[%emt 0:01:42]} 4. g3 {[%emt 0:02:17]} Qf6 {[%emt 0:05:17]} 5. Bg2 {[%emt 0:01:08]} Nc6 {[%emt 0:00:41]} 6. c3 {[%emt 0:01:30]} h6 {[%emt 0:00:55]} 7. O-O {[%emt 0:00:55]} O-O-O {[%emt 0:00:37]} 8. d4 {[%emt 0:01:32]} d5 {[%emt 0:02:43]} 9. e5 {[%emt 0:01:49]} Qg6 {[%emt 0:00:42]} 10. Re1 {[%emt 0:05:42]} Be7 {[%emt 0:01:10]} 11. Nbd2 {[%emt 0:01:24]} h5 {[%emt 0:01:45]} 12. h4 {[%emt 0:01:30]} Qf5 {[%emt 0:02:31]} 13. Nf1 {[%emt 0:02:19]} Nh6 {[%emt 0:02:12]} 14. Ne3 {[%emt 0:03:14]} Qh7 {[%emt 0:06:48]} 15. Bh3 {[%emt 0:05:07]} Rdg8 {[%emt 0:16:29]} 16. Nxd5 {[%emt 0:04:53]} Ng4 {[%emt 0:08:29]} 17. Nxe7+ {[%emt 0:05:29]} Nxe7 {[%emt 0:00:07]} 18. Qe2 {[%emt 0:05:52]} f6 {[%emt 0:08:34]} 19. exf6 {[%emt 0:10:08]} gxf6 {[%emt 0:03:03]} 20. Qxe6+ {[%emt 0:02:46]} Kd8 {[%emt 0:03:42]} 21. Bg2 {[%emt 0:08:01]} Bd5 {[%emt 0:08:56]} 22. Qe2 {[%emt 0:00:47]} Nf5 {[%emt 0:01:46]} 23. Ng5 {[%emt 0:07:41]} fxg5 {[%emt 0:01:57]} 24. Bxd5 {[%emt 0:00:47]} Re8 {[%emt 0:00:25]} 25. Bxg5+ {[%emt 0:00:19]} Ne7 {[%emt 0:01:51]} 26. Bc6 {[%emt 0:01:13]} Qg7 {[%emt 0:05:14]} 27. Qe6 {[%emt 0:01:21]} 1-0